fUST/lending_fUST_20240805
["ID","MTS","AMOUNT","RATE_DAILY","PERIOD"]
[334240585,1722855047866,-500.0,0.00041643,31]
[334240586,1722855047876,-606.39,0.00041643,31]
[334240587,1722855047885,-1217.41,0.00041643,31]
[334240588,1722855047894,-948.05,0.00041643,31]
[334240589,1722855047904,-500.0,0.00041643,31]
[334240590,1722855047913,-500.0,0.00041643,31]
[334240591,1722855047927,-500.0,0.00041643,31]
[334240592,1722855047936,-689.27,0.00041643,31]
[334240593,1722855047946,-646.58,0.00041643,31]
[334240594,1722855047955,-500.0,0.00041643,31]
[334240595,1722855047964,-500.0,0.00041643,31]
[334240596,1722855047973,-500.0,0.00041643,31]
[334240597,1722855047983,-500.0,0.00041643,31]
[334240598,1722855047992,-500.0,0.00041643,31]
[334240599,1722855048002,-986.54,0.00041643,31]
[334240600,1722855048012,-500.0,0.00041643,31]
[334240601,1722855048021,-524.95009952,0.00041643,31]
[334240602,1722855048031,-500.0,0.00041643,31]
[334240603,1722855048041,-500.0,0.00041643,31]
[334240604,1722855048050,-500.0,0.00041643,31]
[334240605,1722855048060,-500.0,0.00041643,31]
[334240606,1722855048069,-500.0,0.00041643,31]
[334240607,1722855048079,-500.0,0.00041643,31]
[334240608,1722855048089,-500.0,0.00041643,31]
[334240609,1722855048098,-500.0,0.00041643,31]
[334240610,1722855048108,-516.67,0.00041643,31]
[334240611,1722855048117,-500.0,0.00041643,31]
[334240612,1722855048127,-455.31303835,0.00041643,31]
[334240613,1722855048136,-500.0,0.00041643,31]
[334240614,1722855048145,-500.0,0.00041643,31]
[334240615,1722855048155,-500.0,0.00041643,31]
[334240616,1722855048164,-500.0,0.00041643,31]
[334240617,1722855048176,-500.0,0.00041643,31]
[334240618,1722855048185,-561.44,0.00041643,31]
[334240619,1722855048194,-500.0,0.00041643,31]
[334240620,1722855048203,-500.0,0.00041643,31]
[334240621,1722855048213,-500.0,0.00041643,31]
[334240622,1722855048222,-1409.15,0.00041643,31]
[334240623,1722855048232,-500.0,0.00041643,31]
[334240624,1722855048241,-1083.53,0.00041643,31]
[334240625,1722855048252,-500.0,0.00041643,31]
[334240626,1722855048261,-501.45863294,0.00041643,31]
[334240627,1722855048270,-1193.48,0.00041643,31]
[334240628,1722855048281,-500.0,0.00041643,31]
[334240629,1722855048291,-500.0,0.00041643,31]
[334240630,1722855048300,-500.0,0.00041643,31]
[334240631,1722855048310,-500.0,0.00041643,30]
[334240632,1722855048320,-500.0,0.00041643,31]
[334240633,1722855048329,-515.17483968,0.00041643,31]
[334240634,1722855048339,-538.97,0.00041643,31]
[334240635,1722855048348,-1078.1,0.00041643,31]
[334240636,1722855048358,-1649.0,0.00041643,31]
[334240637,1722855048368,-500.0,0.00041643,31]
[334240638,1722855048378,-513.72966609,0.00041643,31]
[334240639,1722855048388,-500.0,0.00041643,31]
[334240640,1722855048398,-500.0,0.00041643,31]
[334240641,1722855048408,-500.0,0.00041643,31]
[334240642,1722855048419,-500.0,0.00041643,31]
[334240643,1722855048428,-500.0,0.00041643,31]
[334240644,1722855048439,-500.0,0.00041643,31]
[334240645,1722855048448,-500.0,0.00041643,31]
[334240646,1722855048458,-538.5,0.00041643,31]
[334240647,1722855048468,-500.0,0.00041643,31]
[334240648,1722855048477,-500.0,0.00041643,31]
[334240649,1722855048487,-500.0,0.00041643,31]
[334240650,1722855048497,-500.0,0.00041643,20]
[334240651,1722855048507,-500.0,0.00041643,31]
[334240652,1722855048516,-500.0,0.00041643,31]
[334240653,1722855048526,-560.86,0.00041643,31]
[334240654,1722855048535,-546.72486707,0.00041643,31]
[334240655,1722855048545,-413.36053254,0.00041643,31]
[334240656,1722855048554,-500.0,0.00041643,31]
[334240657,1722855048565,-500.0,0.00041643,31]
[334240658,1722855048574,-500.0,0.00041643,31]
[334240659,1722855048584,-500.0,0.00041643,31]
[334240660,1722855048593,-500.0,0.00041643,31]
[334240661,1722855048603,-500.0,0.00041643,31]
[334240662,1722855048613,-500.0,0.00041643,31]
[334240663,1722855048622,-1127.13,0.00041643,31]
[334240664,1722855048632,-508.92075092,0.00041643,31]
[334240665,1722855048642,-500.0,0.00041643,31]
[334240666,1722855048652,-500.0,0.00041643,31]
[334240667,1722855048662,-500.0,0.00041643,31]
[334240668,1722855048675,-500.0,0.00041643,31]
[334240669,1722855048684,-500.0,0.00041643,31]
[334240670,1722855048695,-500.0,0.00041643,31]
[334240671,1722855048704,-9778.98,0.00041643,31]
[334240672,1722855048714,-500.0,0.00041643,31]
[334240673,1722855048724,-701.63,0.00041643,31]
[334240674,1722855048733,-768.05,0.00041643,31]
[334240675,1722855048743,-987.68,0.00041643,31]
[334240676,1722855048752,-500.0,0.00041643,31]
[334240677,1722855048766,-508.51,0.00041643,31]
[334240678,1722855048776,-500.0,0.00041643,31]
[334240679,1722855048785,-500.0,0.00041643,31]
[334240680,1722855048795,-748.56,0.00041643,31]
[334240681,1722855048804,-500.0,0.00041643,31]
[334240682,1722855048814,-500.0,0.00041643,31]
[334240683,1722855048824,-500.0,0.00041643,31]
[334240684,1722855048835,-500.0,0.00041643,31]
[334240685,1722855048845,-905.82,0.00041643,31]
[334240686,1722855048854,-500.0,0.00041643,31]
[334240687,1722855048863,-500.0,0.00041643,31]
[334240688,1722855048873,-500.0,0.00041643,31]
[334240689,1722855048882,-500.0,0.00041643,31]
[334240690,1722855048891,-500.0,0.00041643,31]
[334240691,1722855048901,-500.0,0.00041643,31]
[334240692,1722855048911,-504.66948976,0.00041643,31]
[334240693,1722855048923,-1565.67,0.00041643,31]
[334240694,1722855048933,-500.0,0.00041643,31]
[334240695,1722855048943,-817.47,0.00041643,31]
[334240696,1722855048954,-500.0,0.00041643,31]
[334240697,1722855048964,-500.0,0.00041643,31]
[334240698,1722855048974,-500.0,0.00041643,31]
[334240699,1722855048984,-1007.12,0.00041643,31]
[334240700,1722855048994,-500.0,0.00041643,31]
[334240701,1722855049003,-500.0,0.00041643,31]
[334240702,1722855049012,-500.0,0.00041643,31]
[334240703,1722855049022,-500.0,0.00041643,31]
[334240704,1722855049031,-1178.52,0.00041643,31]
[334240705,1722855049041,-714.52,0.00041643,31]
[334240706,1722855049050,-500.0,0.00041643,31]
[334240707,1722855049061,-500.0,0.00041643,31]
[334240708,1722855049071,-504.3357179,0.00041643,31]
[334240709,1722855049081,-1039.78,0.00041643,31]
[334240710,1722855049091,-500.0,0.00041643,31]
[334240711,1722855049100,-500.0,0.00041643,31]
[334240712,1722855049110,-1227.19,0.00041643,31]
[334240713,1722855049119,-500.0,0.00041643,31]
[334240714,1722855049128,-708.67,0.00041643,31]
[334240715,1722855049137,-500.0,0.00041643,31]
[334240716,1722855049147,-500.0,0.00041643,31]
[334240717,1722855049157,-500.0,0.00041643,31]
[334240718,1722855049166,-500.0,0.00041643,31]
[334240719,1722855049180,-500.0,0.00041643,31]
[334240720,1722855049190,-500.0,0.00041643,31]
[334240721,1722855049199,-500.0,0.00041643,31]
[334240722,1722855049208,-500.0,0.00041643,31]
[334240723,1722855049218,-548.75,0.00041643,31]
[334240724,1722855049227,-920.73,0.00041643,31]
[334240725,1722855049236,-500.0,0.00041643,31]
[334240726,1722855049246,-500.0,0.00041643,31]
[334240727,1722855049256,-573.81107972,0.00041643,31]
[334240728,1722855049266,-214.24593694,0.00041643,31]
[334240729,1722855049276,-500.0,0.00041643,31]
[334240730,1722855049286,-1263.83,0.00041643,31]
[334240731,1722855049295,-1237.48,0.00041643,31]
[334240732,1722855049305,-500.0,0.00041643,31]
[334240733,1722855049315,-500.0,0.00041643,31]
[334240734,1722855049324,-500.0,0.00041643,31]
[334240735,1722855049334,-500.0,0.00041643,31]
[334240736,1722855049344,-500.0,0.00041643,31]
[334240737,1722855049354,-500.0,0.00041643,31]
[334240738,1722855049363,-473.83863687,0.00041643,31]
[334240739,1722855049373,-500.0,0.00041643,31]
[334240740,1722855049382,-500.0,0.00041643,31]
[334240741,1722855049392,-2406.0,0.00041643,31]
[334240742,1722855049401,-500.0,0.00041643,31]
[334240743,1722855049411,-509.47237885,0.00041643,31]
[334240744,1722855049425,-839.85,0.00041643,31]
[334240745,1722855049435,-500.0,0.00041643,31]
[334240746,1722855049444,-500.0,0.00041643,31]
[334240747,1722855049454,-1572.12,0.00041643,31]
[334240748,1722855049464,-500.0,0.00041643,31]
[334240749,1722855049474,-500.0,0.00041643,31]
[334240750,1722855049483,-500.0,0.00041643,31]
[334240751,1722855049493,-662.89,0.00041643,31]
[334240752,1722855049503,-500.0,0.00041643,31]
[334240753,1722855049512,-1626.65,0.00041643,31]
[334240754,1722855049522,-500.0,0.00041643,31]
[334240755,1722855049531,-7412.01,0.00041643,31]
[334240756,1722855049541,-500.0,0.00041643,31]
[334240757,1722855049551,-500.0,0.00041643,31]
[334240758,1722855049560,-500.0,0.00041643,31]
[334240759,1722855049570,-500.0,0.00041643,31]
[334240760,1722855049580,-1323.45,0.00041643,31]
[334240761,1722855049590,-985.18,0.00041643,31]
[334240762,1722855049600,-500.0,0.00041643,31]
[334240763,1722855049610,-1213.77,0.00041643,31]
[334240764,1722855049619,-500.0,0.00041643,31]
[334240765,1722855049628,-500.0,0.00041643,31]
[334240766,1722855049637,-16757.11,0.00041643,31]
[334240767,1722855049647,-500.0,0.00041643,31]
[334240768,1722855049656,-500.0,0.00041643,31]
[334240769,1722855049666,-1041.3,0.00041643,31]
[334240770,1722855049682,-500.0,0.00041643,31]
[334240771,1722855049692,-500.0,0.00041643,31]
[334240772,1722855049703,-3947.2,0.00041643,31]
[334240773,1722855049712,-500.0,0.00041643,31]
[334240774,1722855049722,-560.16,0.00041643,31]
[334240775,1722855049732,-500.0,0.00041643,31]
[334240776,1722855049741,-2691.18,0.00041643,21]
[334240777,1722855049752,-500.0,0.00041643,31]
[334240778,1722855049761,-500.0,0.00041643,31]
[334240779,1722855049772,-2605.65,0.00041643,31]
[334240780,1722855049783,-1132.49,0.00041643,31]
[334240781,1722855049792,-288.84358812,0.00041643,31]
[334240782,1722855049802,-500.0,0.00041643,31]
[334240783,1722855049811,-3409.21,0.00041643,31]
[334240784,1722855049821,-506.94875891,0.00041643,31]
[334240785,1722855049830,-755.25,0.00041643,31]
[334240786,1722855049839,-500.0,0.00041643,31]
[334240787,1722855049850,-500.0,0.00041643,31]
[334240788,1722855049859,-2306.12,0.00041643,31]
[334240789,1722855049869,-991.13,0.00041643,31]
[334240790,1722855049878,-500.0,0.00041643,31]
[334240791,1722855049887,-500.0,0.00041643,31]
[334240792,1722855049896,-500.0,0.00041643,31]
[334240793,1722855049905,-500.0,0.00041643,31]
[334240794,1722855049914,-2755.91,0.00041643,31]
[334240795,1722855049929,-500.0,0.00041643,31]
[334240796,1722855049938,-500.0,0.00041643,31]
[334240797,1722855049949,-500.0,0.00041643,31]
[334240798,1722855049958,-500.0,0.00041643,31]
[334240799,1722855049968,-500.0,0.00041643,31]
[334240800,1722855049977,-533.03,0.00041643,31]
[334240801,1722855049987,-500.0,0.00041643,31]
[334240802,1722855049996,-504.00070256,0.00041643,31]
[334240803,1722855050005,-505.05703002,0.00041643,31]
[334240804,1722855050015,-500.0,0.00041643,31]
[334240805,1722855050023,-500.0,0.00041643,31]
[334240806,1722855050032,-4944.89,0.00041643,31]
[334240807,1722855050042,-500.0,0.00041643,31]
[334240808,1722855050051,-529.71,0.00041643,31]
[334240809,1722855050060,-937.48,0.00041643,31]
[334240810,1722855050070,-500.0,0.00041643,31]
[334240811,1722855050079,-408.26097802,0.00041643,31]
[334240812,1722855050088,-687.97,0.00041643,31]
[334240813,1722855050098,-500.0,0.00041643,31]
[334240814,1722855050107,-500.0,0.00041643,31]
[334240815,1722855050115,-500.0,0.00041643,31]
[334240816,1722855050125,-500.0,0.00041643,31]
[334240817,1722855050134,-664.19,0.00041643,31]
[334240818,1722855050143,-500.0,0.00041643,31]
[334240819,1722855050152,-500.0,0.00041643,31]
[334240820,1722855050161,-500.0,0.00041643,31]
[334240821,1722855050176,-9471.47,0.00041643,31]
[334240822,1722855050186,-481.0463292,0.00041643,31]
[334240823,1722855050195,-500.0,0.00041643,31]
[334240824,1722855050204,-500.0,0.00041643,31]
[334240825,1722855050214,-865.03,0.00041643,31]
[334240826,1722855050223,-506.48,0.00041643,31]
[334240827,1722855050232,-1066.85,0.00041643,31]
[334240828,1722855050241,-636.68,0.00041643,31]
[334240829,1722855050250,-500.0,0.00041643,31]
[334240830,1722855050259,-500.0,0.00041643,31]
[334240831,1722855050269,-500.0,0.00041643,31]
[334240832,1722855050278,-1286.88,0.00041643,31]
[334240833,1722855050288,-500.0,0.00041643,31]
[334240834,1722855050297,-500.0,0.00041643,31]
[334240835,1722855050306,-500.0,0.00041643,31]
[334240836,1722855050315,-500.0,0.00041643,31]
[334240837,1722855050324,-801.23,0.00041643,31]
[334240838,1722855050333,-500.0,0.00041643,31]
[334240839,1722855050343,-597.11,0.00041643,31]
[334240840,1722855050352,-500.0,0.00041643,31]
[334240841,1722855050361,-500.0,0.00041643,31]
[334240842,1722855050371,-500.0,0.00041643,31]
[334240843,1722855050380,-500.0,0.00041643,31]
[334240844,1722855050390,-500.0,0.00041643,31]
[334240845,1722855050400,-1215.94,0.00041643,31]
[334240846,1722855050410,-500.0,0.00041643,31]
[334240847,1722855050423,-625.3942942,0.00041643,31]
[334240848,1722855050432,-500.0,0.00041643,31]
[334240849,1722855050562,-1028.52,0.00041643,31]
[334240850,1722855050572,-1090.76,0.00041643,31]
[334240851,1722855050582,-593.83,0.00041643,31]
[334240852,1722855050593,-500.0,0.00041643,31]
[334240853,1722855050603,-500.0,0.00041643,31]
[334240854,1722855050613,-736.79,0.00041643,31]
[334240855,1722855050622,-873.59,0.00041643,31]
[334240856,1722855050631,-964.57,0.00041643,31]
[334240857,1722855050641,-7408.01,0.00041643,31]
[334240858,1722855050651,-500.0,0.00041643,31]
[334240859,1722855050660,-500.0,0.00041643,31]
[334240860,1722855050672,-659.9,0.00041643,31]
[334240861,1722855050681,-500.0,0.00041643,31]
[334240862,1722855050690,-11598.75,0.00041643,31]
[334240863,1722855050701,-500.0,0.00041643,31]
[334240864,1722855050710,-500.0,0.00041643,31]
[334240865,1722855050719,-1709.24,0.00041643,31]
[334240866,1722855050728,-1187.93,0.00041643,31]
[334240867,1722855050737,-513.51931377,0.00041643,31]
[334240868,1722855050747,-894.23,0.00041643,31]
[334240869,1722855050758,-500.0,0.00041643,31]
[334240870,1722855050769,-500.0,0.00041643,31]
[334240871,1722855050781,-500.0,0.00041643,31]
[334240872,1722855050792,-4819.05,0.00041643,31]
[334240873,1722855050803,-500.0,0.00041643,31]
[334240874,1722855050813,-500.0,0.00041643,31]
[334240875,1722855050823,-2369.35,0.00041643,31]
[334240876,1722855050833,-500.0,0.00041643,31]
[334240877,1722855050844,-14683.88,0.00041643,120]
[334240878,1722855050854,-3808.57,0.00041643,31]
[334240879,1722855050865,-1143.54,0.00041643,31]
[334240880,1722855050874,-500.0,0.00041643,31]
[334240881,1722855050884,-200.0,0.00041673,2]
[334240882,1722855050895,-150.0,0.000418,30]
[334240883,1722855050905,-5000.0,0.00042,42]
[334240884,1722855050915,-12798.97228577,0.00042191,15]
[334240885,1722855050935,-639.00556229,0.00042191,31]
[334240886,1722855050945,-453.90284315,0.00042191,2]
[334240887,1722855050955,-500.0,0.00042191,31]
[334240888,1722855050966,-500.0,0.00042191,6]
[334240889,1722855050975,-550.03842823,0.00042191,31]
[334240890,1722855050985,-500.0,0.00042191,31]
[334240891,1722855050994,-500.0,0.00042191,31]
[334240892,1722855051004,-500.0,0.00042191,31]
[334240893,1722855051014,-500.0,0.00042191,31]
[334240894,1722855051023,-500.0,0.00042191,31]
[334240895,1722855051032,-557.25988914,0.00042191,31]
[334240896,1722855051042,-500.0,0.00042191,31]
[334240897,1722855051052,-500.0,0.00042191,31]
[334240898,1722855051061,-500.0,0.00042191,31]
[334240899,1722855051071,-500.0,0.00042191,31]
[334240900,1722855051081,-542.16656639,0.00042191,31]
[334240901,1722855051090,-569.77673361,0.00042191,31]
[334240902,1722855051101,-500.0,0.00042191,31]
[334240903,1722855051110,-500.0,0.00042191,31]
[334240904,1722855051119,-433.90384302,0.00042191,31]
[334240905,1722855051129,-500.0,0.00042191,31]
[334240906,1722855051138,-500.0,0.00042191,31]
[334240907,1722855051147,-503.11915899,0.00042191,31]
[334240908,1722855051156,-500.0,0.00042191,31]
[334240909,1722855051165,-500.0,0.00042191,31]
[334240910,1722855051185,-500.0,0.00042191,31]
[334240911,1722855051195,-500.0,0.00042191,31]
[334240912,1722855051204,-1458.86,0.00042191,31]
[334240913,1722855051213,-518.46,0.00042191,31]
[334240914,1722855051223,-486.214584,0.00042191,31]
[334240915,1722855051232,-500.0,0.00042191,31]
[334240916,1722855051241,-500.0,0.00042191,31]
[334240917,1722855051250,-500.0,0.00042191,31]
[334240918,1722855051259,-740.66,0.00042191,31]
[334240919,1722855051269,-635.54,0.00042191,31]
[334240920,1722855051278,-500.0,0.00042191,31]
[334240921,1722855051287,-500.0,0.00042191,31]
[334240922,1722855051297,-200.0,0.00042191,7]
[334240923,1722855051306,-517.77414188,0.00042191,31]
[334240924,1722855051316,-634.68353738,0.00042191,31]
[334240925,1722855051326,-216.07823524,0.00042191,31]
[334240926,1722855051336,-500.0,0.00042191,31]
[334240927,1722855051345,-500.0,0.00042191,31]
[334240928,1722855051355,-500.0,0.00042191,31]
[334240929,1722855051364,-500.0,0.00042191,31]
[334240930,1722855051373,-500.0,0.00042191,31]
[334240931,1722855051382,-517.66,0.00042191,31]
[334240932,1722855051392,-719.7,0.00042191,31]
[334240933,1722855051401,-793.81,0.00042191,31]
[334240934,1722855051410,-500.0,0.00042191,31]
[334240935,1722855051426,-500.0,0.00042191,31]
[334240936,1722855051435,-500.0,0.00042191,31]
[334240937,1722855051444,-500.0,0.00042191,31]
[334240938,1722855051454,-505.64141509,0.00042191,31]
[334240939,1722855051463,-1510.24,0.00042191,31]
[334240940,1722855051473,-500.0,0.00042191,31]
[334240941,1722855051482,-500.0,0.00042191,31]
[334240942,1722855051492,-500.0,0.00042191,31]
[334240943,1722855051501,-500.0,0.00042191,31]
[334240944,1722855051510,-703.47,0.00042191,31]
[334240945,1722855051519,-500.0,0.00042191,31]
[334240946,1722855051528,-500.0,0.00042191,31]
[334240947,1722855051538,-500.0,0.00042191,31]
[334240948,1722855051547,-210.34544718,0.00042191,31]
[334240949,1722855051556,-500.0,0.00042191,31]
[334240950,1722855051565,-500.0,0.00042191,31]
[334240951,1722855051574,-500.0,0.00042191,31]
[334240952,1722855051583,-500.0,0.00042191,31]
[334240953,1722855051592,-843.22,0.00042191,31]
[334240954,1722855051601,-500.0,0.00042191,31]
[334240955,1722855051610,-500.0,0.00042191,31]
[334240956,1722855051620,-500.0,0.00042191,31]
[334240957,1722855051629,-500.0,0.00042191,31]
[334240958,1722855051638,-500.0,0.00042191,31]
[334240959,1722855051647,-500.0,0.00042191,31]
[334240960,1722855051656,-500.0,0.00042191,31]
[334240961,1722855051665,-489.4433917,0.00042191,31]
[334240962,1722855051683,-500.0,0.00042191,31]
[334240963,1722855051692,-560.90764424,0.00042191,31]
[334240964,1722855051702,-500.0,0.00042191,31]
[334240965,1722855051711,-500.0,0.00042191,31]
[334240966,1722855051720,-606.39,0.00042191,31]
[334240967,1722855051730,-1217.41,0.00042191,31]
[334240968,1722855051739,-948.05,0.00042191,31]
[334240969,1722855051748,-500.0,0.00042191,31]
[334240970,1722855051763,-500.0,0.00042191,31]
[334240971,1722855051772,-533.92129937,0.00042191,31]
[334240972,1722855051782,-689.27,0.00042191,31]
[334240973,1722855051791,-646.58,0.00042191,31]
[334240974,1722855051802,-500.0,0.00042191,31]
[334240975,1722855051812,-500.0,0.00042191,31]
[334240976,1722855051821,-500.0,0.00042191,31]
[334240977,1722855051831,-500.0,0.00042191,31]
[334240978,1722855051842,-500.0,0.00042191,31]
[334240979,1722855051852,-986.54,0.00042191,31]
[334240980,1722855051861,-500.0,0.00042191,31]
[334240981,1722855051871,-500.0,0.00042191,31]
[334240982,1722855051879,-500.0,0.00042191,31]
[334240983,1722855051889,-500.0,0.00042191,31]
[334240984,1722855051898,-318.96310678,0.00042191,31]
[334240985,1722855051907,-500.0,0.00042191,31]
[334240986,1722855051916,-500.0,0.00042191,31]
[334240987,1722855051932,-500.0,0.00042191,31]
[334240988,1722855051941,-500.0,0.00042191,31]
[334240989,1722855051951,-516.67,0.00042191,31]
[334240990,1722855051960,-500.0,0.00042191,31]
[334240991,1722855051968,-500.0,0.00042191,31]
[334240992,1722855051977,-513.04471253,0.00042191,31]
[334240993,1722855051987,-500.0,0.00042191,31]
[334240994,1722855051996,-500.0,0.00042191,31]
[334240995,1722855052006,-500.0,0.00042191,31]
[334240996,1722855052015,-561.44,0.00042191,31]
[334240997,1722855052024,-500.0,0.00042191,31]
[334240998,1722855052033,-500.0,0.00042191,31]
[334240999,1722855052042,-1409.15,0.00042191,31]
[334241000,1722855052051,-500.0,0.00042191,31]
[334241001,1722855052060,-500.0,0.00042191,31]
[334241002,1722855052070,-1083.53,0.00042191,31]
[334241003,1722855052080,-271.2262195,0.00042191,31]
[334241004,1722855052089,-1193.48,0.00042191,31]
[334241005,1722855052098,-500.0,0.00042191,31]
[334241006,1722855052108,-510.26016601,0.00042191,31]
[334241007,1722855052117,-500.0,0.00042191,31]
[334241008,1722855052127,-500.0,0.00042191,30]
[334241009,1722855052135,-500.0,0.00042191,31]
[334241010,1722855052144,-538.97,0.00042191,31]
[334241011,1722855052153,-1078.1,0.00042191,31]
[334241012,1722855052162,-1649.0,0.00042191,31]
[334241013,1722855052174,-500.0,0.00042191,31]
[334241014,1722855052183,-500.0,0.00042191,31]
[334241015,1722855052193,-500.0,0.00042191,31]
[334241016,1722855052202,-500.0,0.00042191,31]
[334241017,1722855052211,-500.0,0.00042191,31]
[334241018,1722855052220,-500.0,0.00042191,31]
[334241019,1722855052229,-500.0,0.00042191,31]
[334241020,1722855052239,-500.0,0.00042191,31]
[334241021,1722855052248,-538.5,0.00042191,31]
[334241022,1722855052257,-241.5904491,0.00042191,31]
[334241023,1722855052266,-500.0,0.00042191,31]
[334241024,1722855052276,-500.0,0.00042191,31]
[334241025,1722855052285,-505.10814949,0.00042191,20]
[334241026,1722855052294,-500.0,0.00042191,31]
[334241027,1722855052303,-500.0,0.00042191,31]
[334241028,1722855052313,-560.86,0.00042191,31]
[334241029,1722855052326,-313.07895851,0.00042191,31]
[334241030,1722855052335,-500.0,0.00042191,31]
[334241031,1722855052344,-500.0,0.00042191,31]
[334241032,1722855052353,-511.85403925,0.00042191,31]
[334241033,1722855052363,-500.0,0.00042191,31]
[334241034,1722855052372,-500.0,0.00042191,31]
[334241035,1722855052381,-500.0,0.00042191,31]
[334241036,1722855052391,-1127.13,0.00042191,31]
[334241037,1722855052400,-500.0,0.00042191,31]
[334241038,1722855052409,-500.0,0.00042191,31]
[334241039,1722855052423,-492.243976,0.00042191,31]
[334241040,1722855052432,-500.0,0.00042191,31]
[334241041,1722855052441,-500.0,0.00042191,31]
[334241042,1722855052451,-9778.98,0.00042191,31]
[334241043,1722855052461,-500.0,0.00042191,31]
[334241044,1722855052470,-701.63,0.00042191,31]
[334241045,1722855052480,-768.05,0.00042191,31]
[334241046,1722855052490,-987.68,0.00042191,31]
[334241047,1722855052499,-500.0,0.00042191,31]
[334241048,1722855052509,-508.51,0.00042191,31]
[334241049,1722855052519,-500.0,0.00042191,31]
[334241050,1722855052529,-500.0,0.00042191,31]
[334241051,1722855052539,-748.56,0.00042191,31]
[334241052,1722855052548,-500.0,0.00042191,31]
[334241053,1722855052558,-500.0,0.00042191,31]
[334241054,1722855052568,-500.0,0.00042191,31]
[334241055,1722855052577,-500.0,0.00042191,31]
[334241056,1722855052586,-905.82,0.00042191,31]
[334241057,1722855052596,-185.7101351,0.00042191,31]
[334241058,1722855052606,-500.0,0.00042191,31]
[334241059,1722855052615,-500.0,0.00042191,31]
[334241060,1722855052624,-500.0,0.00042191,31]
[334241061,1722855052634,-546.93520939,0.00042191,31]
[334241062,1722855052643,-500.0,0.00042191,31]
[334241063,1722855052653,-1565.67,0.00042191,31]
[334241064,1722855052662,-500.0,0.00042191,31]
[334241065,1722855052676,-817.47,0.00042191,31]
[334241066,1722855052685,-500.0,0.00042191,31]
[334241067,1722855052695,-500.0,0.00042191,31]
[334241068,1722855052704,-500.0,0.00042191,31]
[334241069,1722855052714,-1007.12,0.00042191,31]
[334241070,1722855052723,-500.0,0.00042191,31]
[334241071,1722855052732,-500.0,0.00042191,31]
[334241072,1722855052741,-500.0,0.00042191,31]
[334241073,1722855052750,-206.56950077,0.00042191,31]
[334241074,1722855052760,-1178.52,0.00042191,31]
[334241075,1722855052770,-714.52,0.00042191,31]
[334241076,1722855052780,-500.0,0.00042191,31]
[334241077,1722855052789,-500.0,0.00042191,31]
[334241078,1722855052798,-1039.78,0.00042191,31]
[334241079,1722855052808,-500.0,0.00042191,31]
[334241080,1722855052819,-500.0,0.00042191,31]
[334241081,1722855052828,-1227.19,0.00042191,31]
[334241082,1722855052837,-500.0,0.00042191,31]
[334241083,1722855052848,-708.67,0.00042191,31]
[334241084,1722855052858,-500.0,0.00042191,31]